[Event "Live Chess"]
[Site "Chess.com"]
[Date "2023.09.16"]
[Round "-"]
[White "VIAJEMCENTRODATERRA"]
[Black "ArthurMPRJ"]
[Result "1/2-1/2"]
[WhiteElo "2004"]
[BlackElo "1429"]
[TimeControl "900+5"]
[EndTime "7:48:10 PDT"]
[Termination "Partida empatada por acordo"]

1. d4 {[%clk 0:15:03]} 1... Nf6 {[%clk 0:15:03.4]} 2. c4 {[%clk 0:15:06.5]} 2...
e6 {[%clk 0:15:07.8]} 3. Nc3 {[%clk 0:15:10.7]} 3... Bb4 {[%clk 0:15:09.6]} 4.
e3 {[%clk 0:15:13.5]} 4... c5 {[%clk 0:15:13.7]} 5. Bd3 {[%clk 0:15:12.7]} 5...
cxd4 {[%clk 0:15:17.3]} 6. exd4 {[%clk 0:15:16.2]} 6... d5 {[%clk 0:15:21.8]} 7.
Nf3 {[%clk 0:15:06.7]} 7... O-O {[%clk 0:15:24.1]} 8. O-O {[%clk 0:15:09.9]}
8... Bxc3 {[%clk 0:15:15.4]} 9. bxc3 {[%clk 0:15:13.2]} 9... dxc4 {[%clk
0:15:19.3]} 10. Bxc4 {[%clk 0:15:16.9]} 10... b6 {[%clk 0:15:22.8]} 11. Ne5
{[%clk 0:14:57.3]} 11... Nfd7 {[%clk 0:15:17.7]} 12. Nxd7 {[%clk 0:14:58.4]}
12... Nxd7 {[%clk 0:15:15.6]} 13. Be2 {[%clk 0:15:00.5]} 13... Bb7 {[%clk
0:15:18.7]} 14. Bf3 {[%clk 0:15:04]} 14... Bxf3 {[%clk 0:15:21.7]} 15. Qxf3
{[%clk 0:15:07.7]} 15... Rc8 {[%clk 0:15:25.1]} 16. a4 {[%clk 0:14:44.8]} 16...
Qc7 {[%clk 0:15:17.6]} 17. Ba3 {[%clk 0:14:44.2]} 17... Rfd8 {[%clk 0:15:15.2]}
18. Rfc1 {[%clk 0:14:32.6]} 18... Nf6 {[%clk 0:15:17.5]} 19. g3 {[%clk
0:11:42.7]} 19... Qc6 {[%clk 0:15:06.1]} 20. Qxc6 {[%clk 0:11:38.7]} 20... Rxc6
{[%clk 0:15:10.5]} 21. Be7 {[%clk 0:11:40.8]} 21... Rdc8 {[%clk 0:15:08.7]} 22.
Bxf6 {[%clk 0:11:41.7]} 22... gxf6 {[%clk 0:15:13.6]} 23. Ra3 {[%clk 0:11:45.2]}
23... Rc4 {[%clk 0:15:15.2]} 24. Kf1 {[%clk 0:11:44.7]} 24... Rxd4 {[%clk
0:15:17.1]} 25. cxd4 {[%clk 0:10:34.6]} 25... Rxc1+ {[%clk 0:15:19.3]} 26. Ke2
{[%clk 0:10:39.1]} 26... Kf8 {[%clk 0:15:11.8]} 27. a5 {[%clk 0:10:36.3]} 27...
Rb1 {[%clk 0:15:09.6]} 28. Rc3 {[%clk 0:09:44.9]} 28... bxa5 {[%clk 0:14:54.9]}
29. Rc8+ {[%clk 0:09:26.7]} 29... Kg7 {[%clk 0:14:57.9]} 30. Rc7 {[%clk
0:09:29.6]} 30... Rb4 {[%clk 0:14:38.6]} 31. Rxa7 {[%clk 0:09:26.8]} 31... Rxd4
{[%clk 0:14:39.5]} 32. Rxa5 {[%clk 0:09:30.4]} 32... f5 {[%clk 0:14:39]} 33. Ke3
{[%clk 0:09:30.4]} 33... Re4+ {[%clk 0:14:41.6]} 34. Kf3 {[%clk 0:09:33.6]}
34... Kf6 {[%clk 0:14:39.7]} 35. h4 {[%clk 0:09:28.2]} 35... Rd4 {[%clk
0:14:19.8]} 36. Rb5 {[%clk 0:09:09.8]} 1/2-1/2

[Event "Live Chess"]
[Site "Chess.com"]
[Date "2023.09.16"]
[Round "-"]
[White "kslusk"]
[Black "Samueeeseeel"]
[Result "1/2-1/2"]
[WhiteElo "858"]
[BlackElo "927"]
[TimeControl "900+5"]
[EndTime "7:48:16 PDT"]
[Termination "Empate por repetição"]

1. e4 {[%clk 0:15:03.5]} 1... c5 {[%clk 0:15:01.5]} 2. Nf3 {[%clk 0:15:07.4]}
2... Nc6 {[%clk 0:15:04.4]} 3. d4 {[%clk 0:15:12]} 3... cxd4 {[%clk 0:15:08.1]}
4. Nxd4 {[%clk 0:15:16.6]} 4... Nxd4 {[%clk 0:15:10.9]} 5. Qxd4 {[%clk
0:15:21.2]} 5... d6 {[%clk 0:15:15]} 6. Nc3 {[%clk 0:15:25.4]} 6... e5 {[%clk
0:15:18]} 7. Qd1 {[%clk 0:15:21.5]} 7... g6 {[%clk 0:15:20.9]} 8. Bb5+ {[%clk
0:15:22]} 8... Bd7 {[%clk 0:15:22.7]} 9. Bxd7+ {[%clk 0:15:26.5]} 9... Qxd7
{[%clk 0:15:25.5]} 10. O-O {[%clk 0:15:30.3]} 10... Bg7 {[%clk 0:15:28.6]} 11.
Qe2 {[%clk 0:15:30.3]} 11... Ne7 {[%clk 0:15:30.2]} 12. Qb5 {[%clk 0:15:33.7]}
12... Qxb5 {[%clk 0:15:32.5]} 13. Nxb5 {[%clk 0:15:37.1]} 13... O-O {[%clk
0:15:36.3]} 14. Nxd6 {[%clk 0:15:33.5]} 14... b6 {[%clk 0:15:33.8]} 15. Nb5
{[%clk 0:15:29.2]} 15... f5 {[%clk 0:15:27.4]} 16. exf5 {[%clk 0:15:32.6]} 16...
gxf5 {[%clk 0:15:30.9]} 17. Re1 {[%clk 0:15:34.7]} 17... f4 {[%clk 0:15:31.6]}
18. Bxf4 {[%clk 0:15:29.1]} 18... exf4 {[%clk 0:15:33.6]} 19. Rxe7 {[%clk
0:15:31.9]} 19... a6 {[%clk 0:15:34.2]} 20. Nc3 {[%clk 0:15:27]} 20... Bxc3
{[%clk 0:15:35.3]} 21. bxc3 {[%clk 0:15:30.4]} 21... Rfe8 {[%clk 0:15:39]} 22.
Rxe8+ {[%clk 0:15:33.8]} 22... Rxe8 {[%clk 0:15:42.7]} 23. Kf1 {[%clk
0:15:37.6]} 23... b5 {[%clk 0:15:40.2]} 24. Rb1 {[%clk 0:15:40.3]} 24... Re7
{[%clk 0:15:43.4]} 25. Rb4 {[%clk 0:15:42.4]} 25... Re5 {[%clk 0:15:42.9]} 26.
Rxf4 {[%clk 0:15:44]} 26... a5 {[%clk 0:15:45.9]} 27. c4 {[%clk 0:15:40.8]}
27... b4 {[%clk 0:15:49.1]} 28. Rg4+ {[%clk 0:15:42.4]} 28... Kf7 {[%clk
0:15:51]} 29. f3 {[%clk 0:15:38.5]} 29... h5 {[%clk 0:15:43.3]} 30. Re4 {[%clk
0:15:39.3]} 30... Rc5 {[%clk 0:15:44.1]} 31. Ke2 {[%clk 0:15:40.1]} 31... Kf6
{[%clk 0:15:45.2]} 32. Kd3 {[%clk 0:15:43.5]} 32... a4 {[%clk 0:15:44.9]} 33.
Rd4 {[%clk 0:15:39.6]} 33... Ke5 {[%clk 0:15:44.5]} 34. f4+ {[%clk 0:15:38.6]}
34... Ke6 {[%clk 0:15:45.4]} 35. g3 {[%clk 0:15:32.5]} 35... Rc8 {[%clk
0:15:41.2]} 36. Ke4 {[%clk 0:15:17.4]} 36... Rb8 {[%clk 0:15:43.1]} 37. f5+
{[%clk 0:15:17.1]} 37... Kf6 {[%clk 0:15:44.5]} 38. Rd6+ {[%clk 0:15:05.1]}
38... Ke7 {[%clk 0:15:45.7]} 39. Re6+ {[%clk 0:15:07]} 39... Kf7 {[%clk
0:15:48.4]} 40. Ra6 {[%clk 0:15:04.3]} 40... b3 {[%clk 0:15:49.8]} 41. cxb3
{[%clk 0:15:07.8]} 41... axb3 {[%clk 0:15:53.2]} 42. axb3 {[%clk 0:15:11.6]}
42... Rxb3 {[%clk 0:15:57.8]} 43. c5 {[%clk 0:15:15]} 43... Rc3 {[%clk
0:15:59.8]} 44. Ra7+ {[%clk 0:15:11.9]} 44... Ke8 {[%clk 0:16:02.4]} 45. Kd4
{[%clk 0:15:07.2]} 45... Rc1 {[%clk 0:16:04.2]} 46. Ra8+ {[%clk 0:15:06.4]}
46... Kd7 {[%clk 0:16:07.2]} 47. Ra6 {[%clk 0:15:08.4]} 47... Kc7 {[%clk
0:16:09.9]} 48. Kd5 {[%clk 0:15:09.1]} 48... Kb7 {[%clk 0:16:10.6]} 49. Rb6+
{[%clk 0:15:11.5]} 49... Kc7 {[%clk 0:16:14.4]} 50. Rc6+ {[%clk 0:15:15.3]}
50... Kb7 {[%clk 0:16:16.8]} 51. f6 {[%clk 0:15:18.9]} 51... Rf1 {[%clk
0:16:18.8]} 52. Rd6 {[%clk 0:15:17.5]} 52... Kc7 {[%clk 0:16:21.1]} 53. Rc6+
{[%clk 0:15:19.7]} 53... Kd7 {[%clk 0:16:23.6]} 54. Rd6+ {[%clk 0:15:22.2]}
54... Kc7 {[%clk 0:16:26.1]} 55. Rc6+ {[%clk 0:15:17.6]} 55... Kd7 {[%clk
0:16:28.4]} 56. Rd6+ {[%clk 0:15:19.7]} 56... Kc7 {[%clk 0:16:31.9]} 1/2-1/2

[Event "Live Chess"]
[Site "Chess.com"]
[Date "2023.09.16"]
[Round "-"]
[White "MateusLuan08"]
[Black "IanFLS"]
[Result "0-1"]
[WhiteElo "1563"]
[BlackElo "1877"]
[TimeControl "900+5"]
[EndTime "7:48:47 PDT"]
[Termination "IanFLS venceu por desistência"]

1. e4 {[%clk 0:15:01]} 1... c6 {[%clk 0:15:03.3]} 2. d4 {[%clk 0:15:03.7]} 2...
d5 {[%clk 0:15:05.7]} 3. e5 {[%clk 0:15:05.4]} 3... Bf5 {[%clk 0:15:08.9]} 4.
Nf3 {[%clk 0:15:09.1]} 4... h6 {[%clk 0:15:10.8]} 5. c4 {[%clk 0:15:10]} 5... e6
{[%clk 0:15:14.7]} 6. Nc3 {[%clk 0:15:13]} 6... Bb4 {[%clk 0:15:14]} 7. Qb3
{[%clk 0:15:07.9]} 7... Bxc3+ {[%clk 0:15:14.2]} 8. bxc3 {[%clk 0:15:04.4]} 8...
b6 {[%clk 0:15:16.3]} 9. cxd5 {[%clk 0:15:03.1]} 9... cxd5 {[%clk 0:15:20.6]}
10. Ba3 {[%clk 0:14:56.9]} 10... Qd7 {[%clk 0:15:23.3]} 11. Bb5 {[%clk
0:14:48.5]} 11... Nc6 {[%clk 0:15:27.6]} 12. Qa4 {[%clk 0:14:48.5]} 12... Rc8
{[%clk 0:15:24]} 13. O-O {[%clk 0:14:47.3]} 13... Nge7 {[%clk 0:15:27.4]} 14.
Bxe7 {[%clk 0:14:48.9]} 14... Kxe7 {[%clk 0:15:26.5]} 15. Bxc6 {[%clk
0:14:41.2]} 15... Rxc6 {[%clk 0:15:27.7]} 16. h3 {[%clk 0:14:38.6]} 16... Rhc8
{[%clk 0:15:30.7]} 17. Rac1 {[%clk 0:14:32]} 17... Ke8 {[%clk 0:15:29.6]} 18.
Qa3 {[%clk 0:14:25.6]} 18... Rc4 {[%clk 0:15:23.3]} 19. Nd2 {[%clk 0:14:14.4]}
19... Qa4 {[%clk 0:15:14.9]} 20. Qb3 {[%clk 0:14:04]} 20... Qxb3 {[%clk
0:15:12.7]} 21. axb3 {[%clk 0:14:06.6]} 21... Rxc3 {[%clk 0:15:17.1]} 22. Rxc3
{[%clk 0:14:09.5]} 22... Rxc3 {[%clk 0:15:22]} 23. g4 {[%clk 0:14:09.6]} 23...
Bd3 {[%clk 0:15:19.1]} 24. Ra1 {[%clk 0:14:11.3]} 24... a5 {[%clk 0:15:19.1]}
25. b4 {[%clk 0:13:55.9]} 25... axb4 {[%clk 0:15:18.4]} 26. Nb1 {[%clk
0:13:51.2]} 26... Bxb1 {[%clk 0:15:21]} 27. Rxb1 {[%clk 0:13:53.3]} 27... Rc4
{[%clk 0:15:25.2]} 28. Rb3 {[%clk 0:13:55.9]} 28... Rxd4 {[%clk 0:15:29.2]} 29.
Kg2 {[%clk 0:13:59.6]} 29... Kd7 {[%clk 0:15:32.9]} 30. Kf3 {[%clk 0:14:03.8]}
30... Kc6 {[%clk 0:15:36.9]} 31. Ke3 {[%clk 0:14:07.9]} 31... Re4+ {[%clk
0:15:39.9]} 32. Kd3 {[%clk 0:14:11.4]} 32... b5 {[%clk 0:15:43.6]} 33. f4 {[%clk
0:14:09.9]} 33... Rxf4 {[%clk 0:15:46.9]} 34. Ke3 {[%clk 0:14:12.2]} 34... Re4+
{[%clk 0:15:50.9]} 35. Kd3 {[%clk 0:14:15]} 35... Kc5 {[%clk 0:15:54.5]} 36. Kc2
{[%clk 0:14:15.1]} 0-1

[Event "Live Chess"]
[Site "Chess.com"]
[Date "2023.09.16"]
[Round "-"]
[White "augustodemoraisrocha"]
[Black "Torugomilho11"]
[Result "0-1"]
[WhiteElo "1445"]
[BlackElo "1177"]
[TimeControl "900+5"]
[EndTime "7:48:53 PDT"]
[Termination "Torugomilho11 venceu por desistência"]

1. e4 {[%clk 0:15:03.8]} 1... e5 {[%clk 0:15:04.2]} 2. Nf3 {[%clk 0:15:08.3]}
2... Nc6 {[%clk 0:15:07.7]} 3. Bb5 {[%clk 0:15:12.9]} 3... a6 {[%clk 0:15:10.2]}
4. Ba4 {[%clk 0:15:16.4]} 4... b5 {[%clk 0:15:13.8]} 5. Bb3 {[%clk 0:15:20.6]}
5... Nf6 {[%clk 0:15:16]} 6. Nc3 {[%clk 0:15:23.4]} 6... Bb4 {[%clk 0:15:19.2]}
7. d4 {[%clk 0:15:22.1]} 7... exd4 {[%clk 0:15:17.5]} 8. Nxd4 {[%clk 0:15:26]}
8... Bxc3+ {[%clk 0:15:19.9]} 9. bxc3 {[%clk 0:15:29.2]} 9... O-O {[%clk
0:15:16]} 10. Nxc6 {[%clk 0:15:29.9]} 10... dxc6 {[%clk 0:15:19.9]} 11. Qxd8
{[%clk 0:15:32.5]} 11... Rxd8 {[%clk 0:15:24.8]} 12. f3 {[%clk 0:15:35.6]} 12...
c5 {[%clk 0:15:19.3]} 13. a3 {[%clk 0:15:28.3]} 13... c4 {[%clk 0:15:22.8]} 14.
Ba2 {[%clk 0:15:30.5]} 14... Be6 {[%clk 0:15:22.7]} 15. Bd2 {[%clk 0:15:33.4]}
15... Rd6 {[%clk 0:15:21.9]} 16. O-O-O {[%clk 0:15:36.7]} 16... Rad8 {[%clk
0:15:20.7]} 17. Bf4 {[%clk 0:15:37.1]} 17... Rxd1+ {[%clk 0:15:24]} 18. Rxd1
{[%clk 0:15:42]} 18... Rxd1+ {[%clk 0:15:27.5]} 19. Kxd1 {[%clk 0:15:46.9]}
19... c6 {[%clk 0:15:28.3]} 20. Be5 {[%clk 0:15:36.7]} 20... Kf8 {[%clk
0:15:28.3]} 21. Kd2 {[%clk 0:15:37.4]} 21... Ke7 {[%clk 0:15:29.3]} 22. Ke3
{[%clk 0:15:40.2]} 22... Kd7 {[%clk 0:15:14.8]} 23. Kd4 {[%clk 0:15:42.7]} 23...
Kc8 {[%clk 0:15:15.9]} 24. Kc5 {[%clk 0:15:42.2]} 24... Kb7 {[%clk 0:15:20]} 25.
a4 {[%clk 0:15:14]} 25... Nd7+ {[%clk 0:15:23.3]} 26. Kd4 {[%clk 0:15:16.3]}
26... c5+ {[%clk 0:15:20.7]} 27. Ke3 {[%clk 0:15:17.4]} 27... Nxe5 {[%clk
0:15:24.5]} 28. axb5 {[%clk 0:15:19.4]} 28... axb5 {[%clk 0:15:28.5]} 0-1

[Event "Live Chess"]
[Site "Chess.com"]
[Date "2023.09.16"]
[Round "-"]
[White "brenin12345"]
[Black "ABC2009V"]
[Result "0-1"]
[WhiteElo "768"]
[BlackElo "2005"]
[TimeControl "900+5"]
[EndTime "7:49:16 PDT"]
[Termination "ABC2009V venceu por xeque-mate"]

1. e4 {[%clk 0:15:03.5]} 1... c5 {[%clk 0:15:03.9]} 2. Nf3 {[%clk 0:15:04.8]}
2... Nc6 {[%clk 0:15:08.3]} 3. d3 {[%clk 0:15:08.8]} 3... e5 {[%clk 0:15:11.2]}
4. Nc3 {[%clk 0:15:05.2]} 4... d6 {[%clk 0:15:14.6]} 5. g3 {[%clk 0:14:52.6]}
5... Bg4 {[%clk 0:15:18]} 6. Bg2 {[%clk 0:14:55.4]} 6... Be7 {[%clk 0:15:22.1]}
7. h3 {[%clk 0:14:38.7]} 7... Bxf3 {[%clk 0:15:25.7]} 8. Bxf3 {[%clk 0:14:43.2]}
8... Nf6 {[%clk 0:15:29.4]} 9. O-O {[%clk 0:14:45.2]} 9... Qc8 {[%clk
0:15:25.1]} 10. Be3 {[%clk 0:14:27.1]} 10... Qxh3 {[%clk 0:15:22.7]} 11. Bg5
{[%clk 0:13:42.7]} 11... h5 {[%clk 0:14:58.8]} 12. Bxf6 {[%clk 0:13:36.9]} 12...
Bxf6 {[%clk 0:14:51.6]} 13. g4 {[%clk 0:13:18.1]} 13... Nd4 {[%clk 0:14:49.1]}
14. Bg2 {[%clk 0:12:49.5]} 14... Qxg4 {[%clk 0:14:48.4]} 15. Qxg4 {[%clk
0:12:51.4]} 15... hxg4 {[%clk 0:14:53.3]} 16. f3 {[%clk 0:12:51.1]} 16... Nxc2
{[%clk 0:14:48.5]} 17. Rac1 {[%clk 0:12:51.3]} 17... Ne3 {[%clk 0:14:43.3]} 18.
fxg4 {[%clk 0:12:49.9]} 18... Nxf1 {[%clk 0:14:47]} 19. Bxf1 {[%clk 0:12:50.5]}
19... Rh4 {[%clk 0:14:43.9]} 20. Be2 {[%clk 0:12:45.7]} 20... O-O-O {[%clk
0:14:45.8]} 21. Nd5 {[%clk 0:12:44.3]} 21... Rdh8 {[%clk 0:14:47.2]} 22. Nxf6
{[%clk 0:12:46.3]} 22... Rh1+ {[%clk 0:14:48.3]} 23. Kf2 {[%clk 0:12:48]} 23...
Rxc1 {[%clk 0:14:50.4]} 24. Nh7 {[%clk 0:12:47.5]} 24... Rxh7 {[%clk 0:14:53.3]}
25. Bd1 {[%clk 0:12:51.2]} 25... Rxd1 {[%clk 0:14:55.9]} 26. g5 {[%clk
0:12:53.5]} 26... Rh2+ {[%clk 0:14:58.6]} 27. Ke3 {[%clk 0:12:48.9]} 27... Re1+
{[%clk 0:14:49.6]} 28. Kf3 {[%clk 0:12:47.5]} 28... Ree2 {[%clk 0:14:53.8]} 29.
Kg3 {[%clk 0:12:50.6]} 29... Rd2 {[%clk 0:14:55.2]} 30. Kf3 {[%clk 0:12:53.5]}
30... Rhe2 {[%clk 0:14:59]} 31. Kg3 {[%clk 0:12:57.2]} 31... Rxd3+ {[%clk
0:15:00.4]} 32. Kh4 {[%clk 0:13:00.6]} 32... Rxe4+ {[%clk 0:15:03.3]} 33. Kh5
{[%clk 0:13:04.2]} 33... Rh3# {[%clk 0:15:08.2]} 0-1

[Event "Live Chess"]
[Site "Chess.com"]
[Date "2023.09.16"]
[Round "-"]
[White "Abofado"]
[Black "z_anne_ari"]
[Result "0-1"]
[WhiteElo "569"]
[BlackElo "1258"]
[TimeControl "900+5"]
[EndTime "7:49:22 PDT"]
[Termination "z_anne_ari venceu por xeque-mate"]

1. e4 {[%clk 0:15:04.1]} 1... d5 {[%clk 0:15:04]} 2. exd5 {[%clk 0:15:07.1]}
2... Qd6 {[%clk 0:15:08.3]} 3. d4 {[%clk 0:15:11.6]} 3... Qxd5 {[%clk
0:15:12.2]} 4. Nf3 {[%clk 0:15:14.4]} 4... c5 {[%clk 0:15:15.9]} 5. c4 {[%clk
0:15:13.2]} 5... Qd8 {[%clk 0:15:17.6]} 6. dxc5 {[%clk 0:15:16.7]} 6... Nc6
{[%clk 0:15:20.9]} 7. Bd2 {[%clk 0:15:15.2]} 7... e6 {[%clk 0:15:24.5]} 8. Ng5
{[%clk 0:15:19]} 8... Bxc5 {[%clk 0:15:17.4]} 9. Qf3 {[%clk 0:15:21.4]} 9... Nh6
{[%clk 0:15:08.1]} 10. Nh3 {[%clk 0:15:16.5]} 10... Ne5 {[%clk 0:15:11]} 11. Qh5
{[%clk 0:15:08.6]} 11... Qf6 {[%clk 0:14:57.2]} 12. Nc3 {[%clk 0:15:02.2]} 12...
O-O {[%clk 0:14:47.5]} 13. Ne4 {[%clk 0:15:06.2]} 13... Qg6 {[%clk 0:14:41.2]}
14. Qxe5 {[%clk 0:15:05.3]} 14... Bb6 {[%clk 0:14:26.8]} 15. Bb4 {[%clk
0:15:04.1]} 15... Rd8 {[%clk 0:14:22.6]} 16. Nf4 {[%clk 0:15:06.5]} 16... Ng4
{[%clk 0:14:16.8]} 17. Qc3 {[%clk 0:14:30.7]} 17... Qxe4+ {[%clk 0:14:17.5]} 18.
Ne2 {[%clk 0:14:24.7]} 18... Bxf2# {[%clk 0:14:18.5]} 0-1

[Event "Live Chess"]
[Site "Chess.com"]
[Date "2023.09.16"]
[Round "-"]
[White "KBT2007"]
[Black "zxsimon"]
[Result "1-0"]
[WhiteElo "1905"]
[BlackElo "1474"]
[TimeControl "900+5"]
[EndTime "7:49:45 PDT"]
[Termination "KBT2007 venceu por desistência"]

1. d4 {[%clk 0:15:04]} 1... Nf6 {[%clk 0:15:02.1]} 2. c4 {[%clk 0:15:08.4]} 2...
d6 {[%clk 0:15:05]} 3. Nc3 {[%clk 0:15:11.8]} 3... g6 {[%clk 0:15:09.4]} 4. Nf3
{[%clk 0:15:15.9]} 4... Bg7 {[%clk 0:15:14]} 5. Bg5 {[%clk 0:15:15.5]} 5... Nbd7
{[%clk 0:15:18.1]} 6. e4 {[%clk 0:15:16.5]} 6... O-O {[%clk 0:15:20.6]} 7. Qd2
{[%clk 0:15:15.2]} 7... c5 {[%clk 0:15:24.2]} 8. d5 {[%clk 0:15:18.3]} 8... a6
{[%clk 0:15:26.2]} 9. a4 {[%clk 0:15:16.9]} 9... Re8 {[%clk 0:15:23]} 10. Be2
{[%clk 0:15:17.2]} 10... Rb8 {[%clk 0:15:26.4]} 11. O-O {[%clk 0:15:15.1]} 11...
Ne5 {[%clk 0:15:18.6]} 12. Nxe5 {[%clk 0:15:12.5]} 12... dxe5 {[%clk 0:15:23.5]}
13. a5 {[%clk 0:14:56.4]} 13... e6 {[%clk 0:15:02.8]} 14. Bxf6 {[%clk
0:14:40.3]} 14... Bxf6 {[%clk 0:14:59.4]} 15. Na4 {[%clk 0:14:42.8]} 15... exd5
{[%clk 0:15:02.4]} 16. cxd5 {[%clk 0:14:45.3]} 16... Be7 {[%clk 0:15:03.7]} 17.
Rac1 {[%clk 0:14:40.4]} 17... Bd7 {[%clk 0:14:49.9]} 18. Nxc5 {[%clk 0:14:36.7]}
18... Bxc5 {[%clk 0:14:48.2]} 19. Rxc5 {[%clk 0:14:41.6]} 19... Rc8 {[%clk
0:14:52.3]} 20. Rfc1 {[%clk 0:14:43.1]} 20... Rxc5 {[%clk 0:14:51.9]} 21. Rxc5
{[%clk 0:14:46.6]} 21... Qe7 {[%clk 0:14:55.9]} 22. Qc3 {[%clk 0:14:37]} 22...
h5 {[%clk 0:14:53.2]} 23. Rc7 {[%clk 0:14:22.1]} 23... Rb8 {[%clk 0:14:53.7]}
24. Qb3 {[%clk 0:13:58]} 24... Qg5 {[%clk 0:14:50.7]} 25. Rxd7 {[%clk
0:13:46.5]} 25... Qc1+ {[%clk 0:14:52.9]} 26. Bf1 {[%clk 0:13:39.4]} 1-0

[Event "Live Chess"]
[Site "Chess.com"]
[Date "2023.09.16"]
[Round "-"]
[White "daniel-drummond"]
[Black "AlphaKaua10"]
[Result "1-0"]
[WhiteElo "1553"]
[BlackElo "1073"]
[TimeControl "900+5"]
[EndTime "7:50:18 PDT"]
[Termination "daniel-drummond venceu por desistência"]

1. e4 {[%clk 0:15:03.2]} 1... c5 {[%clk 0:15:03.4]} 2. Nf3 {[%clk 0:15:07.2]}
2... g6 {[%clk 0:15:04.8]} 3. d4 {[%clk 0:15:11.1]} 3... cxd4 {[%clk 0:15:08.2]}
4. Nxd4 {[%clk 0:15:16]} 4... Bg7 {[%clk 0:15:12.2]} 5. Nc3 {[%clk 0:15:19.7]}
5... Nf6 {[%clk 0:15:16.1]} 6. Be3 {[%clk 0:15:22.8]} 6... O-O {[%clk
0:15:18.8]} 7. Bc4 {[%clk 0:15:26.4]} 7... d6 {[%clk 0:15:19.8]} 8. Qd2 {[%clk
0:15:30.1]} 8... e5 {[%clk 0:15:23.4]} 9. Nf3 {[%clk 0:15:31.1]} 9... Nc6 {[%clk
0:15:23.3]} 10. O-O-O {[%clk 0:15:30.3]} 10... Be6 {[%clk 0:15:20.1]} 11. Bxe6
{[%clk 0:15:30.5]} 11... fxe6 {[%clk 0:15:23.9]} 12. Qxd6 {[%clk 0:15:23.3]}
12... Qxd6 {[%clk 0:15:25.8]} 13. Rxd6 {[%clk 0:15:25.6]} 13... Rae8 {[%clk
0:15:18.2]} 14. Rhd1 {[%clk 0:15:22.9]} 14... Ng4 {[%clk 0:15:16]} 15. Bc5
{[%clk 0:15:15.9]} 15... Rd8 {[%clk 0:15:13]} 16. Rxe6 {[%clk 0:15:11.8]} 16...
Rxd1+ {[%clk 0:15:12.4]} 17. Kxd1 {[%clk 0:15:15.4]} 17... Rd8+ {[%clk
0:15:15.6]} 18. Kc1 {[%clk 0:15:18.2]} 18... b6 {[%clk 0:15:10.8]} 19. Be7
{[%clk 0:15:13.2]} 19... Nxe7 {[%clk 0:15:13.2]} 20. Rxe7 {[%clk 0:15:16.4]}
20... Nxf2 {[%clk 0:15:13.8]} 21. b3 {[%clk 0:15:05.5]} 21... Bh6+ {[%clk
0:15:07.9]} 22. Kb2 {[%clk 0:15:06.9]} 22... a5 {[%clk 0:15:05]} 23. Nxe5 {[%clk
0:15:06.5]} 23... Bg7 {[%clk 0:14:56.8]} 24. Nc6 {[%clk 0:15:03.9]} 24... Rc8
{[%clk 0:14:59.5]} 25. Re6 {[%clk 0:14:53.1]} 25... Kf7 {[%clk 0:14:59.3]} 26.
Rd6 {[%clk 0:14:54.1]} 26... Be5 {[%clk 0:15:00.7]} 27. Rd5 {[%clk 0:14:53.5]}
27... Bxc3+ {[%clk 0:15:01.4]} 28. Kxc3 {[%clk 0:14:56.6]} 28... Rxc6+ {[%clk
0:15:06]} 29. Kb2 {[%clk 0:14:58.8]} 29... Nxe4 {[%clk 0:15:10]} 30. Rd7+ {[%clk
0:14:58.6]} 30... Kf6 {[%clk 0:15:11.7]} 31. Rxh7 {[%clk 0:15:01.1]} 31... Ng5
{[%clk 0:15:09.2]} 32. Rb7 {[%clk 0:15:00.5]} 32... Ne6 {[%clk 0:15:02.5]} 33.
a4 {[%clk 0:15:00.7]} 33... Nd4 {[%clk 0:15:06.5]} 34. c3 {[%clk 0:14:58.9]}
34... Ne2 {[%clk 0:15:10.2]} 35. c4 {[%clk 0:14:54.1]} 35... Rd6 {[%clk
0:15:14.1]} 36. Kc2 {[%clk 0:14:53.5]} 36... Nd4+ {[%clk 0:15:17.7]} 37. Kc3
{[%clk 0:14:46.5]} 37... Ne2+ {[%clk 0:15:19.1]} 38. Kc2 {[%clk 0:14:50.3]}
38... Nf4 {[%clk 0:15:22.3]} 39. g3 {[%clk 0:14:50.1]} 39... Nh5 {[%clk
0:15:25.9]} 40. Ra7 {[%clk 0:14:46.3]} 40... Kf5 {[%clk 0:15:25]} 41. Ra6 {[%clk
0:14:46.9]} 41... g5 {[%clk 0:15:27.8]} 42. c5 {[%clk 0:14:50.4]} 42... Rc6
{[%clk 0:15:29.8]} 43. Rxb6 {[%clk 0:14:45.3]} 43... Rxc5+ {[%clk 0:15:33.6]}
44. Kd3 {[%clk 0:14:47.7]} 44... Kg4 {[%clk 0:15:35.2]} 45. Rb5 {[%clk
0:14:50.3]} 45... Rc7 {[%clk 0:15:30.2]} 46. Rxa5 {[%clk 0:14:49.7]} 46... Rd7+
{[%clk 0:15:28.2]} 47. Kc4 {[%clk 0:14:52.5]} 47... Nf6 {[%clk 0:15:29.2]} 48.
b4 {[%clk 0:14:50.7]} 48... Rc7+ {[%clk 0:15:32.9]} 49. Kb5 {[%clk 0:14:54.1]}
49... Ne4 {[%clk 0:15:32.5]} 50. Kb6 {[%clk 0:14:51.8]} 50... Rf7 {[%clk
0:15:35.7]} 51. Re5 {[%clk 0:14:46.6]} 51... Nc3 {[%clk 0:15:31.6]} 52. a5
{[%clk 0:14:45.8]} 52... Rf2 {[%clk 0:15:34]} 53. a6 {[%clk 0:14:32.7]} 53...
Rxh2 {[%clk 0:15:36.6]} 54. a7 {[%clk 0:14:30.3]} 54... Rh8 {[%clk 0:15:40.2]}
55. Kb7 {[%clk 0:14:31.6]} 55... Na4 {[%clk 0:15:29.9]} 56. a8=Q {[%clk
0:14:30.9]} 56... Rxa8 {[%clk 0:15:32.9]} 57. Kxa8 {[%clk 0:14:34.6]} 57... Kxg3
{[%clk 0:15:36.9]} 58. Rxg5+ {[%clk 0:14:38.1]} 58... Kf4 {[%clk 0:15:40.8]} 59.
Ra5 {[%clk 0:14:41.1]} 59... Nc3 {[%clk 0:15:43.5]} 60. b5 {[%clk 0:14:43.4]}
60... Nd5 {[%clk 0:15:47.5]} 61. Kb7 {[%clk 0:14:44.8]} 61... Ke5 {[%clk
0:15:48.7]} 62. b6 {[%clk 0:14:47.4]} 62... Kd6 {[%clk 0:15:51.9]} 63. Rxd5+
{[%clk 0:14:50.2]} 63... Kxd5 {[%clk 0:15:55.9]} 64. Kc7 {[%clk 0:14:54.6]}
64... Kc5 {[%clk 0:15:59.9]} 65. b7 {[%clk 0:14:59.5]} 65... Kd5 {[%clk
0:16:03.7]} 66. b8=Q {[%clk 0:15:04.4]} 66... Kc5 {[%clk 0:16:07.3]} 67. Qd8
{[%clk 0:15:07.7]} 1-0